Cogmind - Beta 13 @@@ ROGUE MODE // 2024.04.18 @ 14:45:06 Player: Powerlich_soros Result: Destroyed by D-53 Grenadier with Mini Grenade Launcher Performance ------------- Evolutions (0) 0 Regions Visited (2) 400 Robots Destroyed (21) 105 Value Destroyed (305) 305 Prototype IDs (0) 0 Alien Tech Used (0) 0 Bonus (0) 0 TOTAL SCORE: 810 Bonus ------- None Cogmind --------- Core Integrity 0/250 Matter 136/300 Energy 74/100 System Corruption 0% Temperature Cool (0) Movement Rolling (95) Ox1 Location -10/Mines Parts ------- > --- POWER (1) -------- (None) > --- PROPULSION (2) --- Wheel > --- UTILITY (2) ------ Large Storage Unit Visual Processing Unit > --- WEAPON (2) ------- (None) > --- INVENTORY (15) --- Wheel Compact Wheel Small Storage Unit Medium Matter Pod (0) Beam Cannon Heavy Assault Rifle Heavy Assault Rifle Shotgun Shotgun Peak State ------------ > --- POWER ------------ Light Ion Engine > --- PROPULSION ------- Wheel Wheel > --- UTILITY ---------- Large Storage Unit Visual Processing Unit > --- WEAPON ----------- EM Pulse Gun Grenade Launcher > --- INVENTORY -------- Light Ion Engine Wheel Wheel Wheel Compact Wheel Small Storage Unit Light Assault Rifle Light Assault Rifle Shotgun [Rating: 9] Favorites ----------- Power Light Ion Engine Engine Light Ion Engine Propulsion Wheel Wheel Wheel Utility Large Storage Unit Storage Large Storage Unit Processor Visual Processing Unit Weapon Light Assault Rifle Energy Gun EM Pulse Gun Ballistic Gun Light Assault Rifle Launcher Grenade Launcher Build | -11 -10 -10 ------- Run | Yrd Mat Min Slots Evolved . | . . . Power . | . . . Propulsion . | . . . Utility . | . . . Weapon . | . . . Parts Attached 16 | 7 5 4 Power 2 | 1 . 1 Engine 2 | 1 . 1 Core . | . . . Reactor . | . . . Propulsion 6 | 3 1 2 Treads . | . . . Leg . | . . . Wheel 6 | 3 1 2 Hover . | . . . Flight . | . . . Utility 3 | 1 2 . Device . | . . . Storage 2 | 1 1 . Processor 1 | . 1 . Hackware . | . . . Protection . | . . . Artifact . | . . . Weapon 5 | 2 2 1 Energy Gun 1 | 1 . . Energy Cannon . | . . . Ballistic Gun 3 | 1 1 1 Ballistic Cannon . | . . . Launcher 1 | . 1 . Special Weapon . | . . . Impact Weapon . | . . . Slashing Weapon . | . . . Piercing Weapon . | . . . Special Melee Weapon . | . . . Unidentified Prototypes . | . . . Parts Lost 10 | . 2 8 Power 2 | . . 2 Propulsion 4 | . 1 3 Utility . | . . . Weapon 4 | . 1 3 Highest Loss Streak 7 | . 2 7 To Critical Strikes . | . . . Average Slot Usage (%) 91 | . 92 88 Engine 13 | . 14 8 Wheel 27 | . 28 22 Storage 14 | . 14 14 Processor 8 | . 7 14 Energy Gun 8 | . 10 . Ballistic Gun 9 | . 8 16 Launcher 9 | . 8 11 Naked Turns . | . . . Heaviest Build 31 | 11 31 27 Greatest Support 26 | 26 20 20 Greatest Overweight (x) 2 | . 1 2 Average Overweight (x) . | . . 1 Largest Inventory Capacity 15 | 8 15 15 Average Capacity 12 | 7 14 15 Most Carried 13 | 6 13 13 Average Carried 7 | 2 9 11 Final Capacity 15 | 8 15 15 Final Carried 13 | 6 13 9 Class Distribution -------------------- 100% | Mutant Dominant Class ---------------- Mutant | -10/Materials Mutant | -10/Mines Resources | -11 -10 -10 ----------- Run | Yrd Mat Min Matter Collected 298 | 272 23 3 Remotely . | . . . Salvage Created 351 | 77 234 40 Parts 38 | 9 20 9 Haulers Intercepted 1 | . 1 . Recyclers Shooed 2 | . 2 . Parts Field Recycled . | . . . Retrieved Matter . | . . . Parts Self-Destructed . | . . . Prevented . | . . . Kills | -11 -10 -10 ------- Run | Yrd Mat Min Combat Hostiles Destroyed 16 | . 10 6 Guns 4 | . 4 . AOE 12 | . 6 6 Classes Destroyed 5 | 1 4 . Tunneler 3 | 3 . . Hauler 1 | . 1 . Recycler 1 | . 1 . Swarmer 12 | . 6 6 Grunt 4 | . 4 . Best Kill Streak 9 | 2 9 3 Combat Bots Only 8 | . 8 3 Max Kills in Single Turn 3 | 1 2 3 Gunslinging . | . . . Exploded 3 | . 2 3 Melee . | . . . Uniques/NPCs Destroyed . | . . . Combat | -11 -10 -10 -------- Run | Yrd Mat Min Hostile Shots Fired 63 | . 38 25 Missed 10 | . 7 3 Damage Taken 810 | . 276 534 Core 262 | . 74 188 Absorbed by Shields . | . . . Core Remaining (%) 100 | 100 . . Volleys Fired 34 | 9 19 6 Largest 2 | 2 2 2 Hottest 70 | 60 70 50 Shots Fired 60 | 18 30 12 Gun 47 | 18 22 7 Cannon . | . . . Launcher 13 | . 8 5 Special . | . . . Kinetic 22 | 9 6 7 Thermal . | . . . Explosive 13 | . 8 5 Electromagnetic 25 | 9 16 . Robot Hit Streak 6 | 4 6 1 Robot Miss Streak 3 | 3 1 2 Penetration Max . | . . . Secondary Targets . | . . . Shots Hit Robots 26 | 10 13 3 Core Hits 32 | 5 18 9 Critical Kills . | . . . Critical Parts Destroyed . | . . . Critical Strikes . | . . . Melee Attacks . | . . . Impact . | . . . Slashing . | . . . Piercing . | . . . Sneak Attacks . | . . . Combat Hostiles . | . . . Follow-up Attacks . | . . . Damage Inflicted 1171 | 100 736 335 Guns 220 | 100 120 . Cannons . | . . . Explosions 951 | . 616 335 Melee . | . . . Ramming . | . . . Kinetic 48 | 39 9 . Thermal 44 | . 44 . Explosive 907 | . 572 335 Electromagnetic 172 | 61 111 . Impact . | . . . Slashing . | . . . Piercing . | . . . Highest Corruption . | . . . Average Corruption . | . . . Corruption Purged . | . . . Corruption Blocked . | . . . Overload Shots . | . . . Overflow Damage 91 | . 71 20 Projectiles . | . . . Explosions 91 | . 71 20 Melee . | . . . Knockbacks . | . . . Impact . | . . . Kinetic . | . . . Secondary . | . . . Self-Inflicted Damage . | . . . Shots . | . . . Rammed . | . . . Targets Rammed . | . . . Kicked . | . . . Crushed . | . . . Highest Temperature 40 | 40 40 20 Average Temperature 16 | 17 16 12 Received Heat Transfer 84 | . 84 . Siege Activations . | . . . Robots Corrupted . | . . . Combat Hostiles . | . . . Parts Fried . | . . . Impact Corruptions . | . . . Robots Melted . | . . . Combat Hostiles . | . . . Parts Melted . | . . . Heat Transferred 50 | . 50 . Parts Sabotaged . | . . . Parts Stolen . | . . . Parts Stripped . | . . . Power Chain Reactions 1 | . 1 . Alert | -11 -10 -10 ------- Run | Yrd Mat Min Peak Influence 342 | 15 342 307 Initial 133 | . 9 133 Average 140 | 3 197 228 Maximum Alert Level 1 | . 1 1 Low Security (%) 56 | 100 39 17 Level 1 43 | . 60 82 Level 2 . | . . . Level 3 . | . . . Level 4 . | . . . Level 5 . | . . . High Security . | . . . Max Security . | . . . Squads Dispatched 2 | . 2 . Investigation 1 | . 1 . Extermination . | . . . Reinforcement 1 | . 1 . Assault . | . . . Garrison . | . . . Intercept . | . . . Searches Triggered . | . . . Construction Impeded . | . . . Haulers Reinforced . | . . . Active Scanning Responses . | . . . Cargo Convoy Interrupts . | . . . Stealth | -11 -10 -10 --------- Run | Yrd Mat Min Distress Signals 1 | . 1 . Communications Jammed . | . . . Distress Signals . | . . . Times Spotted 19 | . 12 7 Peak Tracking Total 4 | . 4 3 Tactical Retreats 1 | . 1 . Traps | -11 -10 -10 ------- Run | Yrd Mat Min Traps Triggered 1 | . 1 . Indirectly . | . . . Trap Hack Attempts . | . . . Triggered . | . . . Disarmed . | . . . Reprogrammed . | . . . Reused . | . . . Traps Extracted . | . . . Installed . | . . . Triggered . | . . . Machines | -11 -10 -10 ---------- Run | Yrd Mat Min Machines Disabled 2 | . 2 . Max in Single Turn 1 | . 1 . Machines Repaired . | . . . Machines Dismantled . | . . . Machines Sabotaged . | . . . Overloaded Fab Kills . | . . . Hacking | -11 -10 -10 --------- Run | Yrd Mat Min Machines Accessed 1 | . 1 . Terminals 1 | . 1 . Fabricators . | . . . Repair Stations . | . . . Recycling Units . | . . . Scanalyzers . | . . . Garrison Access . | . . . Total Hacks 3 | . 3 . Successful . | . . . Failed 3 | . 3 . Catastrophic 1 | . 1 . Database Lockouts . | . . . Manual 1 | . 1 . Terminals 3 | . 3 . Fabricators . | . . . Repair Stations . | . . . Recycling Units . | . . . Scanalyzers . | . . . Garrison Access . | . . . Terminal Hacks . | . . . Fabricator Hacks . | . . . Repair Station Hacks . | . . . Recycling Unit Hacks . | . . . Scanalyzer . | . . . Garrison Access Hacks . | . . . Unauthorized Hacks . | . . . Terminals . | . . . Fabricators . | . . . Repair Stations . | . . . Recycling Units . | . . . Scanalyzers . | . . . Garrison Access . | . . . Data Cores Recovered . | . . . Used . | . . . Hacking Detections 1 | . 1 . Full Trace Events . | . . . Feedback Events . | . . . Feedback Blocked . | . . . Robot Schematics Acquired . | . . . Robots Built . | . . . Authchips . | . . . Time . | . . . Total Robot Build Rating . | . . . Part Schematics Acquired . | . . . Parts Built . | . . . Authchips . | . . . Time . | . . . Total Part Build Rating . | . . . Parts Repaired . | . . . Time . | . . . Parts Recycled . | . . . Recycled Matter . | . . . Retrieved Matter . | . . . Retrieved Components . | . . . Parts Scanalyzed . | . . . Part Schematics Acquired . | . . . Parts Damaged . | . . . Bothacking | -11 -10 -10 ------------ Run | Yrd Mat Min Used RIF Installer . | . . . Robots Hacked . | . . . Non-combat . | . . . Combat . | . . . Robot Hacks Applied . | . . . Relay Couplers Released . | . . . Fabnet Peak Effective % . | . . . Robots Rewired . | . . . Allies Hacked . | . . . Hacks Repelled . | . . . Allies | -11 -10 -10 -------- Run | Yrd Mat Min Total Allies . | . . . Largest Group . | . . . Highest-Rated Group . | . . . Highest-Rated Ally . | . . . Total Orders . | . . . Ally Attacks . | . . . Total Damage . | . . . Kills . | . . . Allies Corrupted . | . . . Allies Melted . | . . . Intel | -11 -10 -10 ------- Run | Yrd Mat Min Robot Analysis Total . | . . . Derelict Logs Recovered . | . . . Drone Launches . | . . . Drone Recoveries . | . . . Exploration | -11 -10 -10 ------------- Run | Yrd Mat Min Turns Passed 504 | 157 296 51 Spaces Moved 390 | 123 235 32 Core 3 | 3 . . Treads . | . . . Legs . | . . . Wheels 387 | 120 235 32 Hover . | . . . Flight . | . . . Fastest Speed 50 | 50 80 95 Average Speed 90 | 86 92 95 Slowest Speed 110 | 90 95 110 Overloaded Moves . | . . . Propulsion Burnouts . | . . . Robots Hopped . | . . . Cave-ins Triggered . | . . . Exploration Rate (%) 16 | 5 33 12 Regions Visited 2 Branch Regions 1 Pre-discovered Areas . | . . . Known Exits Taken . | . . . Unknown Exits Taken 2 | 1 1 . Scrap Searched . | . . . Spaces Dug . | . . . Terrain Destroyed 82 | . 39 43 Melee . | . . . Projectile . | . . . AOE 82 | . 39 43 Terrain Rammed . | . . . Walls Destroyed . | . . . Machines Disabled . | . . . Actions | -11 -10 -10 --------- Run | Yrd Mat Min Total 478 | 153 283 42 Wait 25 | 9 16 . Move 388 | 122 234 32 Hop . | . . . Pick Up 14 | 6 8 . Fast Attach 8 | 6 2 . Attach 6 | . 2 4 Detach 1 | . 1 . Swap 2 | 1 1 . Drop . | . . . Fire 34 | 9 19 6 Melee . | . . . Ram . | . . . Kick . | . . . Crush . | . . . Escape Stasis . | . . . Rewire . | . . . Trap . | . . . Miscellaneous . | . . . Route ------- -11/Scrapyard -10/Materials -10/Mines (discovered 1 exit: [*Mat]) History --------- Turn | Location | Event 14 | -11/Scrapyard | Discovered new exit (range 16) 158 | -11/Scrapyard | Entered Materials 307 | -10/Materials | Destroyed 8 combat bots 319 | -10/Materials | Build established: Mutant 376 | -10/Materials | Discovered new exit (range 18) 454 | -10/Materials | Entered Mines 485 | -10/Mines | Assembled infested the area 490 | -10/Mines | Discovered new exit (range 9) 497 | -10/Mines | Core integrity fell below 50% 499 | -10/Mines | Core integrity fell below 20% 505 | -10/Mines | Destroyed by D-53 Grenadier with Mini Grenade Launcher Last Messages --------------- 00456_ S-10 Pest destroyed. 00471_ Acquired 3 matter. 00481_ R-06 Scavenger collects Lgt. Assault Rifle. 00485_ ALERT: Infestation in the mines, dispatching Demolisher response squad. 00490_ EXIT=FOUND 00491_ Destroyed Lgt. Ion Engine. 00491_ S-10 Pest destroyed. 00494_ Grenade Launcher destroyed. 00496_ Lgt. Ion Engine destroyed. 00498_ Wheel destroyed. 00499_ The unstable cave ceiling collapses. 00500_ R-06 Scavenger destroyed. 00500_ R-06 Scavenger collects Lgt. Assault Rifle. 00501_ The unstable cave ceiling collapses. 00503_ Lgt. Assault Rifle destroyed. 00503_ Wheel destroyed. 00504_ K-01 Serf destroyed. 00504_ R-06 Scavenger collects Com. Wheel. 00505_ Lgt. Assault Rifle destroyed. Map ----- +----------------------------------------------------+ | | | | | | | | | | | | | | | | | | | | | | | ?????????????????????????????????????????????????? | | ?????????????????????????????????????????????????? | | ?????????????????????????????????????????????????? | | ?????????????????????????????????????????????????? | | ?????????????????????????????????????????????????? | | ?????####?????????????####???????????????????????? | | ???### ####??????##### ##??????????????????????? | | ??## ##????## #??????##??????????????? | | ??# ###### #????? ???????????????? | | ??# r ##???a##???????????????? | | ??# ### #???????????????? | | ??# # [% #???????????????? | | ??## ###### =#????????????????? | | ???# #????# d* ##???????????????? | | ???### ####????# @ d[= #???????????????? | | ?????#####?????# *<% #???????????????? | | ??????????????# ! #???????????????? | | ??????????????# ##???????????????? | | ??????????????## # #????????????????? | | ???????????????# ######## ##????????????????? | | ??????????????# ?????????####?????????????????? | | ????????????? ??????????????????????????????? | | ??????????? ???????????????????????????????? | | ?????????? ???????????????????????????????? | | ?????????? ????????????????????????????????? | | ?????????# ????????????????????????????????? | | ?????????# ?????????????????????????????????? | | ?????????? ?????????????????????????????????? | | ????????????? ???????????????????????????????????? | | ?????????????????????????????????????????????????? | | ?????????????????????????????????????????????????? | | ?????????????????????????????????????????????????? | | ?????????????????????????????????????????????????? | | ?????????????????????????????????????????????????? | | ?????????????????????????????????????????????????? | | ?????????????????????????????????????????????????? | | ?????????????????????????????????????????????????? | | ?????????????????????????????????????????????????? | | ?????????????????????????????????????????????????? | +----------------------------------------------------+ Best States ------------- Heat Dissipation 25 Energy Generation 10 Energy Capacity 125 Matter Stores 300 Matter Capacity 300 Sight Range 18 Terrain Scan Density 10 Evasion (%) 44 Item Schematics ----------------- None Robot Schematics ------------------ None Fabricated ------------ Nothing Alien Tech Used ----------------- None Achievements -------------- None Challenges ------------ None Game ------ Seed LightCoreArmor Manual? 0 Play Time 00:09:11 Cumulative 12.6 hours Start 2024.04.18 @ 14:37:03 End 2024.04.18 @ 14:45:06 Sessions 1 Manual Loads 0 Difficulty Rogue Special Mode None Game No. 13 Rogue 13 Adventurer 0 Explorer 0 Win Type - Total 0 Types 0/0/0/0/0/0/0/0/0 Lore% 11 Gallery% 14 Achievement% 14 Wizard Run 0 Options --------- Layout 0 ASCII 1 Keyboard 1 Movement Vi Keybinds 0 Fullscreen 1 Font 20/SmallcapsGlow Map View 66x50 Zoom Use 0% Tactical HUD 1 Map Filters NONE Filters NONE Steam 1 RUN: 19af79ad-9178-4b5e-9ff6-f178682b3003